[Event "1st Sakatam Open 2024"]
[Site "Guwahati"]
[Date "2024.03.24"]
[Round "1.1"]
[White "Pragyan Puzari"]
[Black "Kaustuv, Kundu"]
[Result "0-1"]
[ECO "B22"]
[WhiteElo "1416"]
[BlackElo "2388"]
[Annotator "RC"]
[PlyCount "90"]
[EventDate "2024.03.24"]
[EventType "swiss"]
[EventCountry "IND"]
[SourceTitle "playchess.com"]
[Source "ChessBase"]
[SourceQuality "1"]
[TimeControl "5400+30"]

1. e4 {[%emt 0:00:03]} c5 {[%emt 0:00:17]} 2. c3 {[%emt 0:00:21]} d5 {[%emt 0:00:22]} 3. exd5 {[%emt 0:00:37]} Qxd5 {[%emt 0:00:08]} 4. d4 {[%emt 0:00:15]} Nc6 {[%emt 0:00:21]} 5. Nf3 {[%emt 0:00:26]} Bg4 {[%emt 0:00:08]} 6. Be3 {[%emt 0:01:17]} cxd4 {[%emt 0:01:19]} 7. cxd4 {[%emt 0:00:15]} Bxf3 {[%emt 0:00:10]} 8. gxf3 {[%emt 0:00:31]} e6 {[%emt 0:00:14]} 9. a3 {[%emt 0:00:29]} Nf6 {[%emt 0:01:43]} 10. Nc3 {[%emt 0:00:18]} Qd7 {[%emt 0:01:58]} 11. Qd2 {[%emt 0:03:37]} Be7 {[%emt 0:00:34]} 12. O-O-O {[%emt 0:00:43]} Nd5 {[%emt 0:05:07]} 13. Bg2 {[%emt 0:01:46]} Rc8 {[%emt 0:02:17]} 14. Kb1 {[%emt 0:01:11]} O-O {[%emt 0:00:23]} 15. Rhg1 {[%emt 0:00:57]} Nxc3+ {[%emt 0:03:31]} 16. Qxc3 {[%emt 0:02:25]} Bf6 {[%emt 0:00:16]} 17. Qd2 {[%emt 0:01:07]} Rfd8 {[%emt 0:00:24]} 18. f4 {[%emt 0:00:52]} Ne7 {[%emt 0:08:07]} 19. f5 {[%emt 0:02:52]} Nxf5 {[%emt 0:00:17]} 20. Bg5 {[%emt 0:00:09]} Bxg5 {[%emt 0:06:42]} 21. Qxg5 {[%emt 0:00:55]} h6 {[%emt 0:06:27]} 22. Qg4 {[%emt 0:01:17]} Rc4 {[%emt 0:00:24]} 23. Be4 {[%emt 0:00:50]} Rxd4 {[%emt 0:00:18]} 24. Rxd4 {[%emt 0:00:32]} Qxd4 {[%emt 0:00:08]} 25. Bxf5 {[%emt 0:00:40]} exf5 {[%emt 0:00:06]} 26. Qxf5 {[%emt 0:00:50]} Qd3+ {[%emt 0:00:05]} 27. Qxd3 {[%emt 0:00:13]} Rxd3 {[%emt 0:00:06]} 28. Kc2 {[%emt 0:00:13]} Rf3 {[%emt 0:00:08]} 29. Rg2 {[%emt 0:00:26]} f5 {[%emt 0:00:25]} 30. Kd2 {[%emt 0:00:10]} Kf7 {[%emt 0:00:05]} 31. Rg3 {[%emt 0:01:08]} Rxf2+ {[%emt 0:00:10]} 32. Kc3 {[%emt 0:00:06]} Rxh2 {[%emt 0:00:07]} 33. Rd3 {[%emt 0:00:14]} Re2 {[%emt 0:00:07]} 34. Kb3 {[%emt 0:00:11]} f4 {[%emt 0:00:05]} 35. Rf3 {[%emt 0:00:19]} g5 {[%emt 0:00:10]} 36. Rc3 {[%emt 0:00:11]} Kg6 {[%emt 0:00:08]} 37. Rc7 {[%emt 0:00:15]} f3 {[%emt 0:00:06]} 38. Rxb7 {[%emt 0:00:46]} f2 {[%emt 0:00:06]} 39. Rxa7 {[%emt 0:00:26]} f1=Q {[%emt 0:00:07]} 40. Ra6+ {[%emt 0:00:13]} Kh5 {[%emt 0:00:06]} 41. a4 {[%emt 0:00:41]} Re3+ {[%emt 0:00:07]} 42. Ka2 {[%emt 0:00:18]} Qxa6 {[%emt 0:00:05]} 43. b3 {[%emt 0:00:13]} Qd3 {[%emt 0:00:10]} 44. Ka1 {[%emt 0:00:13]} Qxb3 {[%emt 0:00:07]} 45. a5 {[%emt 0:00:12]} Re1# {[%emt 0:00:05]} 0-1

[Event "1st Sakatam Open 2024"]
[Site "Guwahati"]
[Date "2024.03.24"]
[Round "1.2"]
[White "Arpan Das"]
[Black "Rachit Kumar Sah"]
[Result "1-0"]
[ECO "B38"]
[WhiteElo "2374"]
[BlackElo "1416"]
[Annotator "RC"]
[PlyCount "41"]
[EventDate "2024.03.24"]
[EventType "swiss"]
[EventCountry "IND"]
[SourceTitle "playchess.com"]
[Source "ChessBase"]
[SourceQuality "1"]
[TimeControl "5400+30"]

1. e4 {[%emt 0:01:16]} c5 {[%emt 0:00:20]} 2. Nf3 {[%emt 0:00:05]} Nc6 {[%emt 0:00:07]} 3. d4 {[%emt 0:00:04]} cxd4 {[%emt 0:00:12]} 4. Nxd4 {[%emt 0:00:03]} g6 {[%emt 0:00:28]} 5. c4 {[%emt 0:00:08]} Bg7 {[%emt 0:00:49]} 6. Be3 {[%emt 0:00:06]} Nf6 {[%emt 0:00:43]} 7. Nc3 {[%emt 0:00:04]} d6 {[%emt 0:00:57]} 8. Be2 {[%emt 0:00:06]} O-O {[%emt 0:01:41]} 9. O-O {[%emt 0:00:05]} Be6 {[%emt 0:01:40]} 10. h3 {[%emt 0:00:12]} a6 {[%emt 0:02:16]} 11. Rc1 {[%emt 0:02:48]} Rc8 {[%emt 0:02:09]} 12. Qd2 {[%emt 0:01:19]} Nd7 {[%emt 0:00:57]} 13. Nxe6 {[%emt 0:01:43]} fxe6 {[%emt 0:00:04]} 14. Bg4 {[%emt 0:00:03]} Kh8 {[%emt 0:02:30]} 15. Bxe6 {[%emt 0:00:13]} Rf6 {[%emt 0:00:34]} 16. Bxd7 {[%emt 0:00:19]} Qxd7 {[%emt 0:00:09]} 17. Nd5 {[%emt 0:00:03]} Rff8 {[%emt 0:02:29]} 18. Nb6 {[%emt 0:00:12]} Qe6 {[%emt 0:00:03]} 19. Nxc8 {[%emt 0:00:46]} Rxc8 {[%emt 0:00:12]} 20. f3 {[%emt 0:00:02]} Bxb2 {[%emt 0:00:25]} 21. Qxb2+ {[%emt 0:00:10]} 1-0

[Event "1st Sakatam Open 2024"]
[Site "Guwahati"]
[Date "2024.03.24"]
[Round "1.3"]
[White "Faujia Fahima Rahman"]
[Black "Subhayan Kundu"]
[Result "0-1"]
[ECO "A80"]
[WhiteElo "1415"]
[BlackElo "2353"]
[Annotator "RC"]
[PlyCount "78"]
[EventDate "2024.03.24"]
[EventType "swiss"]
[EventCountry "IND"]
[SourceTitle "playchess.com"]
[Source "ChessBase"]
[SourceQuality "1"]
[TimeControl "5400+30"]

1. d4 {[%emt 0:00:06]} f5 {[%emt 0:00:11]} 2. Nf3 {[%emt 0:00:50]} Nf6 {[%emt 0:00:21]} 3. e3 {[%emt 0:00:57]} g6 {[%emt 0:00:18]} 4. Bd3 {[%emt 0:02:01]} Bg7 {[%emt 0:00:06]} 5. b3 {[%emt 0:02:38]} O-O {[%emt 0:00:45]} 6. Bb2 {[%emt 0:01:08]} b6 {[%emt 0:01:31]} 7. O-O {[%emt 0:01:09]} Bb7 {[%emt 0:00:06]} 8. Nbd2 {[%emt 0:01:25]} e6 {[%emt 0:02:54]} 9. Re1 {[%emt 0:03:47]} Ne4 {[%emt 0:01:29]} 10. c4 {[%emt 0:06:21]} c5 {[%emt 0:04:06]} 11. Qc2 {[%emt 0:03:35]} Ng5 {[%emt 0:00:19]} 12. Be2 {[%emt 0:03:17]} Nc6 {[%emt 0:05:44]} 13. Nxg5 {[%emt 0:04:01]} Qxg5 {[%emt 0:00:38]} 14. Nf3 {[%emt 0:00:55]} Qe7 {[%emt 0:01:45]} 15. dxc5 {[%emt 0:03:59]} bxc5 {[%emt 0:01:51]} 16. Bxg7 {[%emt 0:01:38]} Qxg7 {[%emt 0:00:35]} 17. a3 {[%emt 0:03:19]} f4 {[%emt 0:04:34]} 18. Bd3 {[%emt 0:03:11]} fxe3 {[%emt 0:01:45]} 19. fxe3 {[%emt 0:00:50]} Rxf3 {[%emt 0:07:42]} 20. gxf3 {[%emt 0:00:56]} Ne5 {[%emt 0:00:05]} 21. Be2 {[%emt 0:07:04]} Bxf3 {[%emt 0:03:55]} 22. Rf1 {[%emt 0:03:57]} Bc6 {[%emt 0:00:17]} 23. Rac1 {[%emt 0:06:53]} Qh6 {[%emt 0:00:49]} 24. Qc3 {[%emt 0:03:33]} Qg5+ {[%emt 0:02:33]} 25. Kf2 {[%emt 0:00:58]} Rf8+ {[%emt 0:01:24]} 26. Ke1 {[%emt 0:01:38]} Rxf1+ {[%emt 0:00:07]} 27. Bxf1 {[%emt 0:02:08]} Nf3+ {[%emt 0:00:26]} 28. Kd1 {[%emt 0:03:14]} Be4 {[%emt 0:01:55]} 29. Bd3 {[%emt 0:05:27]} Qxe3 {[%emt 0:00:13]} 30. Bxe4 {[%emt 0:00:55]} Qxe4 {[%emt 0:00:02]} 31. Rc2 {[%emt 0:02:10]} Nd4 {[%emt 0:00:26]} 32. Rf2 {[%emt 0:04:41]} Qb1+ {[%emt 0:00:17]} 33. Kd2 {[%emt 0:03:16]} Nxb3+ {[%emt 0:00:05]} 34. Ke3 {[%emt 0:01:45]} Nd4 {[%emt 0:00:09]} 35. Qa5 {[%emt 0:02:01]} Kg7 {[%emt 0:02:15]} 36. Qxc5 {[%emt 0:02:16]} Qe1+ {[%emt 0:00:16]} 37. Kd3 {[%emt 0:01:52]} Qxf2 {[%emt 0:00:05]} 38. Qxd4+ {[%emt 0:00:20]} Qxd4+ {[%emt 0:00:02]} 39. Kxd4 {[%emt 0:00:09]} d6 {[%emt 0:00:01]} 0-1

[Event "1st Sakatam Open 2024"]
[Site "Guwahati"]
[Date "2024.03.24"]
[Round "1.4"]
[White "Mishra, Neeraj-Kumar"]
[Black "Ishant A Pratim Deka"]
[Result "1-0"]
[ECO "D02"]
[WhiteElo "2150"]
[BlackElo "1415"]
[Annotator "RC"]
[PlyCount "69"]
[EventDate "2024.03.24"]
[EventType "swiss"]
[EventCountry "IND"]
[SourceTitle "playchess.com"]
[Source "ChessBase"]
[SourceQuality "1"]
[TimeControl "5400+30"]

1. d4 {[%emt 0:00:11]} Nf6 {[%emt 0:00:17]} 2. g3 {[%emt 0:00:16]} d5 {[%emt 0:00:22]} 3. Bg2 {[%emt 0:00:08]} Bf5 {[%emt 0:00:37]} 4. Nf3 {[%emt 0:00:26]} e6 {[%emt 0:00:57]} 5. O-O {[%emt 0:00:11]} Nbd7 {[%emt 0:00:33]} 6. b3 {[%emt 0:00:24]} Bd6 {[%emt 0:00:44]} 7. Bb2 {[%emt 0:00:09]} Nf8 {[%emt 0:02:10]} 8. Nbd2 {[%emt 0:00:40]} c6 {[%emt 0:01:32]} 9. Ne5 {[%emt 0:01:23]} Qc7 {[%emt 0:01:32]} 10. c4 {[%emt 0:00:25]} Ng6 {[%emt 0:01:21]} 11. Nd3 {[%emt 0:01:56]} Bxd3 {[%emt 0:02:38]} 12. exd3 {[%emt 0:00:08]} h5 {[%emt 0:01:52]} 13. h4 {[%emt 0:03:04]} Ng4 {[%emt 0:04:35]} 14. Nf3 {[%emt 0:01:52]} Bxg3 {[%emt 0:00:47]} 15. fxg3 {[%emt 0:00:09]} Ne3 {[%emt 0:00:14]} 16. Qe1 {[%emt 0:00:09]} Nxf1 {[%emt 0:00:31]} 17. Bxf1 {[%emt 0:00:12]} O-O-O {[%emt 0:00:42]} 18. Bh3 {[%emt 0:00:25]} Kb8 {[%emt 0:01:03]} 19. Kg2 {[%emt 0:00:45]} Rhe8 {[%emt 0:01:19]} 20. Qe3 {[%emt 0:02:53]} Ne7 {[%emt 0:06:05]} 21. Qe5 {[%emt 0:00:24]} dxc4 {[%emt 0:04:19]} 22. dxc4 {[%emt 0:00:35]} Nf5 {[%emt 0:04:59]} 23. Re1 {[%emt 0:04:59]} f6 {[%emt 0:02:51]} 24. Qxc7+ {[%emt 0:00:18]} Kxc7 {[%emt 0:00:18]} 25. Kf2 {[%emt 0:00:47]} Kd6 {[%emt 0:02:25]} 26. Ba3+ {[%emt 0:01:27]} Kd7 {[%emt 0:02:14]} 27. d5 {[%emt 0:00:13]} cxd5 {[%emt 0:02:17]} 28. cxd5 {[%emt 0:00:07]} Nh6 {[%emt 0:01:16]} 29. Bxe6+ {[%emt 0:00:24]} Kc7 {[%emt 0:01:04]} 30. d6+ {[%emt 0:01:40]} Kb6 {[%emt 0:01:15]} 31. d7 {[%emt 0:01:59]} Ng4+ {[%emt 0:01:45]} 32. Kf1 {[%emt 0:00:15]} Rxe6 {[%emt 0:02:21]} 33. Rxe6+ {[%emt 0:00:07]} Kc7 {[%emt 0:00:18]} 34. Re7 {[%emt 0:00:10]} Nh6 {[%emt 0:01:24]} 35. Nd4 {[%emt 0:00:28]} 1-0

[Event "1st Sakatam Open 2024"]
[Site "Guwahati"]
[Date "2024.03.24"]
[Round "1.5"]
[White "Arnav Verma"]
[Black "Balkishan, A.."]
[Result "0-1"]
[ECO "D00"]
[WhiteElo "1414"]
[BlackElo "2108"]
[Annotator "RC"]
[PlyCount "66"]
[EventDate "2024.03.24"]
[EventType "swiss"]
[EventCountry "IND"]
[SourceTitle "playchess.com"]
[Source "ChessBase"]
[SourceQuality "1"]
[TimeControl "5400+30"]

1. d4 {[%emt 0:00:03]} d5 {[%emt 0:00:51]} 2. Bf4 {[%emt 0:00:04]} c5 {[%emt 0:00:17]} 3. dxc5 {[%emt 0:01:05]} Nc6 {[%emt 0:00:23]} 4. Nf3 {[%emt 0:00:20]} f6 {[%emt 0:00:12]} 5. Nc3 {[%emt 0:01:32]} e5 {[%emt 0:00:51]} 6. Bg3 {[%emt 0:00:18]} Be6 {[%emt 0:01:01]} 7. e4 {[%emt 0:02:47]} d4 {[%emt 0:00:36]} 8. Nb5 {[%emt 0:01:19]} Bxc5 {[%emt 0:00:19]} 9. Bd3 {[%emt 0:14:45]} a6 {[%emt 0:00:18]} 10. Na3 {[%emt 0:01:02]} Qa5+ {[%emt 0:00:13]} 11. Nd2 {[%emt 0:01:18]} Bxa3 {[%emt 0:00:20]} 12. bxa3 {[%emt 0:00:28]} Qxa3 {[%emt 0:00:05]} 13. O-O {[%emt 0:02:07]} Nge7 {[%emt 0:00:17]} 14. Nc4 {[%emt 0:03:08]} Qc5 {[%emt 0:00:24]} 15. Nd2 {[%emt 0:01:17]} O-O {[%emt 0:00:20]} 16. a3 {[%emt 0:03:54]} b5 {[%emt 0:00:23]} 17. Qe2 {[%emt 0:02:32]} Rfc8 {[%emt 0:01:59]} 18. Rfc1 {[%emt 0:03:49]} Na5 {[%emt 0:00:30]} 19. Qe1 {[%emt 0:04:25]} Qd6 {[%emt 0:00:44]} 20. Nf3 {[%emt 0:02:58]} Nc4 {[%emt 0:00:39]} 21. Nd2 {[%emt 0:00:54]} Nxa3 {[%emt 0:00:39]} 22. Nb3 {[%emt 0:01:29]} Rc3 {[%emt 0:00:53]} 23. Nd2 {[%emt 0:02:11]} Rac8 {[%emt 0:00:07]} 24. Nb1 {[%emt 0:02:45]} Nxb1 {[%emt 0:00:52]} 25. Rcxb1 {[%emt 0:00:33]} Bc4 {[%emt 0:00:07]} 26. Bxc4+ {[%emt 0:01:36]} R8xc4 {[%emt 0:00:06]} 27. Rc1 {[%emt 0:02:28]} Rxc2 {[%emt 0:00:05]} 28. Rxc2 {[%emt 0:00:32]} Rxc2 {[%emt 0:00:04]} 29. Rc1 {[%emt 0:03:01]} Rxc1 {[%emt 0:00:17]} 30. Qxc1 {[%emt 0:00:55]} Qc6 {[%emt 0:00:22]} 31. Qxc6 {[%emt 0:01:03]} Nxc6 {[%emt 0:00:03]} 32. Kf1 {[%emt 0:00:32]} a5 {[%emt 0:00:10]} 33. Ke1 {[%emt 0:00:33]} a4 {[%emt 0:00:03]} 0-1

[Event "1st Sakatam Open 2024"]
[Site "Guwahati"]
[Date "2024.03.24"]
[Round "1.6"]
[White "Kumar, Gaurav"]
[Black "Nibhriti Goswami"]
[Result "1-0"]
[ECO "C62"]
[WhiteElo "2049"]
[BlackElo "1414"]
[Annotator "RC"]
[PlyCount "53"]
[EventDate "2024.03.24"]
[EventType "swiss"]
[EventCountry "IND"]
[SourceTitle "playchess.com"]
[Source "ChessBase"]
[SourceQuality "1"]
[TimeControl "5400+30"]

1. e4 {[%emt 0:00:23]} e5 {[%emt 0:00:11]} 2. Nf3 {[%emt 0:00:11]} Nc6 {[%emt 0:00:14]} 3. Bb5 {[%emt 0:00:37]} Nf6 {[%emt 0:01:00]} 4. O-O {[%emt 0:00:08]} d6 {[%emt 0:00:16]} 5. d4 {[%emt 0:00:08]} exd4 {[%emt 0:01:38]} 6. Nxd4 {[%emt 0:00:05]} Bd7 {[%emt 0:00:26]} 7. Bxc6 {[%emt 0:00:33]} Bxc6 {[%emt 0:00:58]} 8. Nxc6 {[%emt 0:00:08]} bxc6 {[%emt 0:00:06]} 9. Qf3 {[%emt 0:00:33]} h6 {[%emt 0:00:51]} 10. e5 {[%emt 0:00:11]} Nd5 {[%emt 0:01:29]} 11. exd6 {[%emt 0:00:38]} Qxd6 {[%emt 0:00:46]} 12. Re1+ {[%emt 0:00:27]} Be7 {[%emt 0:00:49]} 13. c4 {[%emt 0:00:30]} Nb4 {[%emt 0:00:57]} 14. Bf4 {[%emt 0:01:48]} Qf6 {[%emt 0:03:14]} 15. Qe4 {[%emt 0:01:24]} O-O {[%emt 0:01:36]} 16. a3 {[%emt 0:03:56]} Qxb2 {[%emt 0:10:33]} 17. Be5 {[%emt 0:00:54]} Qb3 {[%emt 0:01:01]} 18. axb4 {[%emt 0:00:44]} Bxb4 {[%emt 0:01:14]} 19. Nc3 {[%emt 0:03:06]} Rfe8 {[%emt 0:01:45]} 20. Qxc6 {[%emt 0:02:47]} Rf8 {[%emt 0:05:48]} 21. Reb1 {[%emt 0:00:31]} Qc2 {[%emt 0:01:29]} 22. Rxb4 {[%emt 0:00:21]} f6 {[%emt 0:01:33]} 23. Bd4 {[%emt 0:00:49]} Qd3 {[%emt 0:00:49]} 24. Qe4 {[%emt 0:00:57]} Qxe4 {[%emt 0:01:04]} 25. Nxe4 {[%emt 0:00:06]} Rfe8 {[%emt 0:00:26]} 26. Nc3 {[%emt 0:00:21]} Rac8 {[%emt 0:00:43]} 27. Bxa7 {[%emt 0:00:24]} 1-0

[Event "1st Sakatam Open 2024"]
[Site "Guwahati"]
[Date "2024.03.24"]
[Round "1.8"]
[White "Singh, Y. Dhanabir"]
[Black "Chaarvi Shree Barman"]
[Result "1-0"]
[ECO "B77"]
[WhiteElo "1996"]
[BlackElo "1412"]
[Annotator "RC"]
[PlyCount "87"]
[EventDate "2024.03.24"]
[EventType "swiss"]
[EventCountry "IND"]
[SourceTitle "playchess.com"]
[Source "ChessBase"]
[SourceQuality "1"]
[TimeControl "5400+30"]

1. e4 {[%emt 0:00:06]} c5 {[%emt 0:00:08]} 2. Nf3 {[%emt 0:00:07]} d6 {[%emt 0:00:08]} 3. d4 {[%emt 0:00:13]} cxd4 {[%emt 0:00:09]} 4. Nxd4 {[%emt 0:00:05]} Nf6 {[%emt 0:00:12]} 5. Nc3 {[%emt 0:00:06]} g6 {[%emt 0:00:20]} 6. Be3 {[%emt 0:00:08]} Bg7 {[%emt 0:00:13]} 7. f3 {[%emt 0:00:17]} O-O {[%emt 0:00:19]} 8. Qd2 {[%emt 0:00:06]} Nc6 {[%emt 0:00:12]} 9. Bc4 {[%emt 0:00:24]} Nxd4 {[%emt 0:00:18]} 10. Bxd4 {[%emt 0:00:07]} Be6 {[%emt 0:00:37]} 11. Bxe6 {[%emt 0:00:15]} fxe6 {[%emt 0:00:14]} 12. O-O-O {[%emt 0:00:08]} Qa5 {[%emt 0:00:24]} 13. Kb1 {[%emt 0:00:15]} Rac8 {[%emt 0:00:34]} 14. Bxf6 {[%emt 0:02:46]} Bxf6 {[%emt 0:01:25]} 15. Nd5 {[%emt 0:00:22]} Qxd2 {[%emt 0:01:31]} 16. Nxf6+ {[%emt 0:00:05]} Rxf6 {[%emt 0:01:17]} 17. Rxd2 {[%emt 0:00:04]} Rf7 {[%emt 0:02:15]} 18. b3 {[%emt 0:00:29]} Kg7 {[%emt 0:03:00]} 19. c4 {[%emt 0:00:10]} Rc5 {[%emt 0:02:38]} 20. Re1 {[%emt 0:00:17]} b5 {[%emt 0:01:48]} 21. cxb5 {[%emt 0:04:18]} Rxb5 {[%emt 0:00:36]} 22. Rc1 {[%emt 0:00:05]} Rf8 {[%emt 0:03:18]} 23. Rc7 {[%emt 0:00:07]} Rf7 {[%emt 0:02:28]} 24. Rxa7 {[%emt 0:00:06]} Rc5 {[%emt 0:05:01]} 25. Rc2 {[%emt 0:00:43]} Rxc2 {[%emt 0:00:48]} 26. Kxc2 {[%emt 0:00:03]} Kf6 {[%emt 0:00:37]} 27. b4 {[%emt 0:00:22]} Rf8 {[%emt 0:01:07]} 28. b5 {[%emt 0:00:07]} Rc8+ {[%emt 0:00:12]} 29. Kd2 {[%emt 0:00:25]} Rb8 {[%emt 0:00:39]} 30. a4 {[%emt 0:00:04]} Rb6 {[%emt 0:01:39]} 31. Ra6 {[%emt 0:00:14]} Rb7 {[%emt 0:00:39]} 32. b6 {[%emt 0:00:04]} Rd7 {[%emt 0:00:41]} 33. Ra7 {[%emt 0:00:06]} Rd8 {[%emt 0:00:23]} 34. b7 {[%emt 0:00:04]} Rb8 {[%emt 0:00:44]} 35. a5 {[%emt 0:00:11]} Kf7 {[%emt 0:00:16]} 36. a6 {[%emt 0:00:10]} Ke8 {[%emt 0:00:18]} 37. Ra8 {[%emt 0:00:11]} Rxa8 {[%emt 0:00:32]} 38. bxa8=Q+ {[%emt 0:00:07]} Kd7 {[%emt 0:00:35]} 39. Qb8 {[%emt 0:00:12]} Kc6 {[%emt 0:00:23]} 40. a7 {[%emt 0:00:04]} Kc5 {[%emt 0:00:37]} 41. Kd3 {[%emt 0:00:14]} Kc6 {[%emt 0:00:56]} 42. a8=Q+ {[%emt 0:00:26]} Kc5 {[%emt 0:00:14]} 43. Qa5+ {[%emt 0:00:04]} Kc6 {[%emt 0:00:13]} 44. Qab5# {[%emt 1:37:33]} 1-0

[Event "1st Sakatam Open 2024"]
[Site "Guwahati"]
[Date "2024.03.24"]
[Round "2.1"]
[White "Kaustuv, Kundu"]
[Black "Antarip Baruah"]
[Result "1-0"]
[ECO "A07"]
[WhiteElo "2388"]
[BlackElo "1544"]
[Annotator "RC"]
[PlyCount "65"]
[EventDate "2024.03.24"]
[EventType "swiss"]
[EventCountry "IND"]
[SourceTitle "playchess.com"]
[Source "ChessBase"]
[SourceQuality "1"]
[TimeControl "5400+30"]

1. Nf3 {[%emt 0:09:29]} d5 {[%emt 0:00:13]} 2. g3 {[%emt 0:00:11]} Nf6 {[%emt 0:00:20]} 3. Bg2 {[%emt 0:00:06]} Bf5 {[%emt 0:00:21]} 4. c4 {[%emt 0:00:15]} e6 {[%emt 0:00:27]} 5. Qb3 {[%emt 0:01:10]} Qc8 {[%emt 0:01:34]} 6. Nc3 {[%emt 0:01:58]} c6 {[%emt 0:01:28]} 7. Nh4 {[%emt 0:04:02]} Bg6 {[%emt 0:02:57]} 8. Nxg6 {[%emt 0:00:55]} hxg6 {[%emt 0:00:12]} 9. d4 {[%emt 0:00:03]} Bd6 {[%emt 0:01:03]} 10. Bd2 {[%emt 0:02:38]} Nbd7 {[%emt 0:01:21]} 11. Rc1 {[%emt 0:00:37]} dxc4 {[%emt 0:05:46]} 12. Qxc4 {[%emt 0:00:09]} Nb6 {[%emt 0:01:52]} 13. Qb3 {[%emt 0:01:14]} Qd7 {[%emt 0:00:30]} 14. O-O {[%emt 0:01:09]} O-O {[%emt 0:02:47]} 15. Rfd1 {[%emt 0:00:40]} Nfd5 {[%emt 0:02:43]} 16. Ne4 {[%emt 0:00:25]} Be7 {[%emt 0:01:49]} 17. Nc5 {[%emt 0:00:22]} Qc8 {[%emt 0:03:27]} 18. e4 {[%emt 0:02:48]} Nc7 {[%emt 0:02:41]} 19. Be3 {[%emt 0:00:42]} Rd8 {[%emt 0:02:00]} 20. a4 {[%emt 0:02:19]} Rb8 {[%emt 0:02:22]} 21. h4 {[%emt 0:01:47]} Nd7 {[%emt 0:01:52]} 22. Nd3 {[%emt 0:00:43]} Nf8 {[%emt 0:04:54]} 23. Ne5 {[%emt 0:01:44]} Nd7 {[%emt 0:01:39]} 24. Nxd7 {[%emt 0:07:37]} Qxd7 {[%emt 0:09:23]} 25. d5 {[%emt 0:00:30]} c5 {[%emt 0:10:32]} 26. d6 {[%emt 0:00:16]} Bxd6 {[%emt 0:02:04]} 27. e5 {[%emt 0:00:04]} Qe7 {[%emt 0:01:31]} 28. exd6 {[%emt 0:00:19]} Rxd6 {[%emt 0:00:25]} 29. Bxc5 {[%emt 0:00:18]} Rxd1+ {[%emt 0:00:17]} 30. Qxd1 {[%emt 0:00:04]} Qf6 {[%emt 0:01:28]} 31. Bd6 {[%emt 0:00:05]} Qxb2 {[%emt 0:01:05]} 32. Rxc7 {[%emt 0:00:17]} a6 {[%emt 0:01:03]} 33. Rc2 {[%emt 0:00:07]} 1-0

[Event "1st Sakatam Open 2024"]
[Site "Guwahati"]
[Date "2024.03.24"]
[Round "2.2"]
[White "Subhradeep Roy"]
[Black "Arpan Das"]
[Result "0-1"]
[ECO "D31"]
[WhiteElo "1543"]
[BlackElo "2374"]
[Annotator "RC"]
[PlyCount "74"]
[EventDate "2024.03.24"]
[EventType "swiss"]
[EventCountry "IND"]
[SourceTitle "playchess.com"]
[Source "ChessBase"]
[SourceQuality "1"]
[TimeControl "5400+30"]

1. d4 {[%emt 0:00:04]} d5 {[%emt 0:01:30]} 2. c4 {[%emt 0:00:13]} e6 {[%emt 0:00:06]} 3. Nf3 {[%emt 0:00:08]} a6 {[%emt 0:00:06]} 4. cxd5 {[%emt 0:00:25]} exd5 {[%emt 0:00:04]} 5. Nc3 {[%emt 0:00:18]} c6 {[%emt 0:00:10]} 6. Bg5 {[%emt 0:00:27]} Be7 {[%emt 0:00:41]} 7. Bxe7 {[%emt 0:00:22]} Nxe7 {[%emt 0:00:22]} 8. e3 {[%emt 0:00:34]} Bf5 {[%emt 0:00:50]} 9. Bd3 {[%emt 0:02:43]} O-O {[%emt 0:00:21]} 10. O-O {[%emt 0:01:06]} Nd7 {[%emt 0:00:17]} 11. Rc1 {[%emt 0:02:05]} g6 {[%emt 0:01:13]} 12. Na4 {[%emt 0:03:33]} Bxd3 {[%emt 0:06:04]} 13. Qxd3 {[%emt 0:00:23]} Nf5 {[%emt 0:00:07]} 14. Nc5 {[%emt 0:01:57]} Nd6 {[%emt 0:01:50]} 15. h3 {[%emt 0:01:18]} Kg7 {[%emt 0:00:32]} 16. Qb3 {[%emt 0:02:50]} Rb8 {[%emt 0:01:15]} 17. Nxd7 {[%emt 0:02:13]} Qxd7 {[%emt 0:00:02]} 18. Ne5 {[%emt 0:00:09]} Qe7 {[%emt 0:02:00]} 19. Qc2 {[%emt 0:00:23]} Rfe8 {[%emt 0:00:53]} 20. b3 {[%emt 0:02:19]} Rbd8 {[%emt 0:00:33]} 21. Rfe1 {[%emt 0:00:42]} Qf6 {[%emt 0:02:03]} 22. Qe2 {[%emt 0:04:51]} Re6 {[%emt 0:01:01]} 23. Rf1 {[%emt 0:02:38]} Qe7 {[%emt 0:01:29]} 24. Nd3 {[%emt 0:01:06]} Re8 {[%emt 0:03:28]} 25. Qd1 {[%emt 0:01:13]} Rf6 {[%emt 0:01:55]} 26. Rc2 {[%emt 0:00:44]} Rf5 {[%emt 0:00:50]} 27. Ne5 {[%emt 0:03:55]} Ne4 {[%emt 0:04:45]} 28. Nd3 {[%emt 0:08:40]} h5 {[%emt 0:03:07]} 29. Nc5 {[%emt 0:00:12]} Nd6 {[%emt 0:00:17]} 30. Nd3 {[%emt 0:00:23]} Qe4 {[%emt 0:01:33]} 31. Nc5 {[%emt 0:07:35]} Qh4 {[%emt 0:00:13]} 32. Kh2 {[%emt 0:00:28]} Qf6 {[%emt 0:03:21]} 33. Qe2 {[%emt 0:04:01]} Qe7 {[%emt 0:05:32]} 34. Kg1 {[%emt 0:03:43]} Rg5 {[%emt 0:01:34]} 35. Qd1 {[%emt 0:03:25]} Nf5 {[%emt 0:00:48]} 36. Nd3 {[%emt 0:01:31]} Qe4 {[%emt 0:00:33]} 37. Nf4 {[%emt 0:00:47]} Nh4 {[%emt 0:00:06]} 0-1